fUST/lending_fUST_20240825
["ID","MTS","AMOUNT","RATE_DAILY","PERIOD"]
[335846720,1724531465782,-449.91835671,0.0001452,2]
[335846721,1724531465791,-500.0,0.0001452,2]
[335846722,1724531465802,-526.81,0.0001452,2]
[335846723,1724531465811,-500.0,0.0001452,2]
[335846724,1724531465820,-500.0,0.0001452,2]
[335846725,1724531465830,-500.0,0.0001452,2]
[335846726,1724531465839,-421.66943815,0.0001452,2]
[335846727,1724531465849,-500.0,0.0001452,2]
[335846728,1724531465858,-500.0,0.0001452,2]
[335846729,1724531465867,-677.32,0.0001452,2]
[335846730,1724531465877,-500.0,0.0001452,2]
[335846731,1724531465887,-500.0,0.0001452,2]
[335846732,1724531465897,-500.0,0.0001452,2]
[335846733,1724531465906,-500.0,0.0001452,2]
[335846734,1724531465915,-445.92668595,0.0001452,2]
[335846735,1724531465924,-929.47,0.0001452,2]
[335846736,1724531465934,-500.0,0.0001452,2]
[335846737,1724531465943,-748.15,0.0001452,2]
[335846738,1724531465953,-534.28,0.0001452,2]
[335846739,1724531465963,-500.0,0.0001452,2]
[335846740,1724531465974,-500.0,0.0001452,2]
[335846741,1724531465984,-774.94,0.0001452,2]
[335846742,1724531465993,-1168.85,0.0001452,2]
[335846743,1724531466003,-500.0,0.0001452,2]
[335846744,1724531466012,-500.0,0.0001452,2]
[335846745,1724531466022,-500.0,0.0001452,2]
[335846746,1724531466031,-500.0,0.0001452,2]
[335846747,1724531466041,-500.0,0.0001452,2]
[335846748,1724531466053,-1085.43,0.0001452,2]
[335846749,1724531466063,-1002.47,0.0001452,2]
[335846750,1724531466073,-639.11,0.0001452,2]
[335846751,1724531466083,-926.86,0.0001452,2]
[335846752,1724531466092,-500.0,0.0001452,2]
[335846753,1724531466102,-761.14,0.0001452,2]
[335846754,1724531466112,-500.0,0.0001452,2]
[335846755,1724531466122,-526.71,0.0001452,2]
[335846756,1724531466131,-744.22,0.0001452,2]
[335846757,1724531466142,-500.0,0.0001452,2]
[335846758,1724531466151,-500.0,0.0001452,2]
[335846759,1724531466161,-631.93,0.0001452,2]
[335846760,1724531466171,-500.0,0.0001452,2]
[335846761,1724531466180,-592.66,0.0001452,2]
[335846762,1724531466190,-2112.1,0.0001452,2]
[335846763,1724531466200,-884.46,0.0001452,2]
[335846764,1724531466209,-500.0,0.0001452,2]
[335846765,1724531466218,-500.0,0.0001452,2]
[335846766,1724531466228,-2931.13,0.0001452,2]
[335846767,1724531466238,-1078.65,0.0001452,2]
[335846768,1724531466247,-500.0,0.0001452,2]
[335846769,1724531466256,-500.0,0.0001452,2]
[335846770,1724531466265,-500.0,0.0001452,2]
[335846771,1724531466275,-618.62,0.0001452,2]
[335846772,1724531466285,-816.32,0.0001452,2]
[335846773,1724531466294,-800.21,0.0001452,2]
[335846774,1724531466312,-440.51322401,0.0001452,2]
[335846775,1724531466323,-781.63,0.0001452,2]
[335846776,1724531466332,-500.0,0.0001452,2]
[335846777,1724531466341,-1221.12,0.0001452,2]
[335846778,1724531466350,-646.32,0.0001452,2]
[335846779,1724531466359,-500.0,0.0001452,2]
[335846780,1724531466368,-500.0,0.0001452,2]
[335846781,1724531466378,-2043.72,0.0001452,2]
[335846782,1724531466387,-500.0,0.0001452,2]
[335846783,1724531466396,-1010.23,0.0001452,2]
[335846784,1724531466405,-500.0,0.0001452,2]
[335846785,1724531466415,-766.22,0.0001452,2]
[335846786,1724531466425,-500.0,0.0001452,2]
[335846787,1724531466434,-799.71,0.0001452,2]
[335846788,1724531466443,-500.0,0.0001452,2]
[335846789,1724531466452,-502.44,0.0001452,2]
[335846790,1724531466462,-500.13,0.0001452,2]
[335846791,1724531466472,-506.51205124,0.0001452,2]
[335846792,1724531466482,-229.58269642,0.0001452,2]
[335846793,1724531466491,-578.8,0.0001452,2]
[335846794,1724531466501,-500.0,0.0001452,2]
[335846795,1724531466510,-500.0,0.0001452,2]
[335846796,1724531466519,-594.16,0.0001452,2]
[335846797,1724531466528,-404.39819315,0.0001452,2]
[335846798,1724531466537,-1288.02,0.0001452,2]
[335846799,1724531466546,-969.48,0.0001452,2]
[335846800,1724531466560,-500.0,0.0001452,2]
[335846801,1724531466569,-1368.37,0.0001452,2]
[335846802,1724531466581,-500.0,0.0001452,2]
[335846803,1724531466590,-1302.49,0.0001452,2]
[335846804,1724531466600,-500.0,0.0001452,2]
[335846805,1724531466609,-500.0,0.0001452,2]
[335846806,1724531466618,-500.0,0.0001452,2]
[335846807,1724531466627,-500.0,0.0001452,2]
[335846808,1724531466636,-590.7317733,0.0001452,2]
[335846809,1724531466645,-675.1,0.0001452,2]
[335846810,1724531466655,-500.0,0.0001452,2]
[335846811,1724531466664,-500.0,0.0001452,2]
[335846812,1724531466674,-500.0,0.0001452,2]
[335846813,1724531466684,-500.0,0.0001452,2]
[335846814,1724531466694,-872.09,0.0001452,2]
[335846815,1724531466703,-852.86,0.0001452,2]
[335846816,1724531466712,-500.0,0.0001452,2]
[335846817,1724531466721,-500.0,0.0001452,2]
[335846818,1724531466731,-1320.03,0.0001452,2]
[335846819,1724531466740,-2614.24,0.0001452,2]
[335846820,1724531466749,-500.0,0.0001452,2]
[335846821,1724531466759,-500.0,0.0001452,2]
[335846822,1724531466768,-1263.51,0.0001452,2]
[335846823,1724531466777,-1424.95,0.0001452,2]
[335846824,1724531466786,-2728.43,0.0001452,2]
[335846825,1724531466796,-500.0,0.0001452,2]
[335846826,1724531466818,-1292.45,0.0001452,2]
[335846827,1724531466827,-507.92,0.0001452,2]
[335846828,1724531466836,-688.45,0.0001452,2]
[335846829,1724531466846,-500.0,0.0001452,2]
[335846830,1724531466856,-1410.25,0.0001452,2]
[335846831,1724531466865,-502.29850537,0.0001452,2]
[335846832,1724531466874,-754.58,0.0001452,2]
[335846833,1724531466885,-2375.92,0.0001452,2]
[335846834,1724531466895,-500.0,0.0001452,2]
[335846835,1724531466904,-1921.55,0.0001452,2]
[335846836,1724531466914,-980.6,0.0001452,2]
[335846837,1724531466923,-500.0,0.0001452,2]
[335846838,1724531466932,-500.0,0.0001452,2]
[335846839,1724531466942,-500.0,0.0001452,2]
[335846840,1724531466952,-500.0,0.0001452,2]
[335846841,1724531466961,-999.26,0.0001452,2]
[335846842,1724531466975,-1062.09,0.0001452,2]
[335846843,1724531466986,-637.81,0.0001452,2]
[335846844,1724531466995,-1225.13,0.0001452,2]
[335846845,1724531467005,-500.0,0.0001452,2]
[335846846,1724531467014,-164.9585654,0.0001452,2]
[335846847,1724531467024,-800.8,0.0001452,2]
[335846848,1724531467034,-500.0,0.0001452,2]
[335846849,1724531467046,-556.93494523,0.0001452,2]
[335846850,1724531467058,-1128.59,0.0001452,2]
[335846851,1724531467067,-819.98,0.0001452,2]
[335846852,1724531467077,-500.0,0.0001452,2]
[335846853,1724531467088,-548.82,0.0001452,2]
[335846854,1724531467097,-1327.62,0.0001452,2]
[335846855,1724531467109,-500.0,0.0001452,2]
[335846856,1724531467119,-1212.1,0.0001452,2]
[335846857,1724531467129,-816.93,0.0001452,2]
[335846858,1724531467138,-601.41070558,0.0001452,2]
[335846859,1724531467147,-1347.74,0.0001452,2]
[335846860,1724531467157,-654.44,0.0001452,2]
[335846861,1724531467166,-1183.71,0.0001452,2]
[335846862,1724531467175,-500.0,0.0001452,2]
[335846863,1724531467184,-500.0,0.0001452,2]
[335846864,1724531467194,-500.0,0.0001452,2]
[335846865,1724531467203,-500.0,0.0001452,2]
[335846866,1724531467213,-500.0,0.0001452,2]
[335846867,1724531467224,-500.0,0.0001452,2]
[335846868,1724531467233,-500.0,0.0001452,2]
[335846869,1724531467243,-334.83890083,0.0001452,2]
[335846870,1724531467253,-1399.1,0.0001452,2]
[335846871,1724531467263,-1258.48,0.0001452,2]
[335846872,1724531467271,-908.55,0.0001452,2]
[335846873,1724531467281,-669.53,0.0001452,2]
[335846874,1724531467290,-833.72,0.0001452,2]
[335846875,1724531467302,-675.35,0.0001452,2]
[335846876,1724531467311,-500.0,0.0001452,2]
[335846877,1724531467323,-626.94,0.0001452,2]
[335846878,1724531467334,-500.0,0.0001452,2]
[335846879,1724531467343,-1045.54,0.0001452,2]
[335846880,1724531467354,-707.88,0.0001452,2]
[335846881,1724531467365,-1304.4,0.0001452,2]
[335846882,1724531467374,-1138.3,0.0001452,2]
[335846883,1724531467383,-1291.63,0.0001452,2]
[335846884,1724531467393,-500.0,0.0001452,2]
[335846885,1724531467405,-622.87,0.0001452,2]
[335846886,1724531467551,-701.54,0.0001452,2]
[335846887,1724531467563,-1511.45,0.0001452,2]
[335846888,1724531467572,-1658.12,0.0001452,2]
[335846889,1724531467581,-842.01,0.0001452,2]
[335846890,1724531467590,-500.0,0.0001452,2]
[335846891,1724531467599,-500.0,0.0001452,2]
[335846892,1724531467609,-181.06987993,0.0001452,2]
[335846893,1724531467618,-500.0,0.0001452,2]
[335846894,1724531467627,-789.09,0.0001452,2]
[335846895,1724531467637,-615.1,0.0001452,2]
[335846896,1724531467646,-697.2,0.0001452,2]
[335846897,1724531467655,-500.0,0.0001452,2]
[335846898,1724531467665,-500.0,0.0001452,2]
[335846899,1724531467675,-805.35,0.0001452,2]
[335846900,1724531467684,-1362.32,0.0001452,2]
[335846901,1724531467693,-983.04,0.0001452,2]
[335846902,1724531467702,-624.92,0.0001452,2]
[335846903,1724531467712,-500.0,0.0001452,2]
[335846904,1724531467721,-530.79,0.0001452,2]
[335846905,1724531467731,-1060.9,0.0001452,2]
[335846906,1724531467741,-500.0,0.0001452,2]
[335846907,1724531467751,-500.0,0.0001452,2]
[335846908,1724531467761,-609.17,0.0001452,2]
[335846909,1724531467770,-569.95,0.0001452,2]
[335846910,1724531467779,-1647.52,0.0001452,2]
[335846911,1724531467788,-509.84,0.0001452,2]
[335846912,1724531467797,-500.0,0.0001452,2]
[335846913,1724531467808,-2067.06,0.0001452,2]
[335846914,1724531467817,-551.95,0.0001452,2]
[335846915,1724531467826,-2076.6,0.0001452,2]
[335846916,1724531467836,-733.55,0.0001452,2]
[335846917,1724531467848,-1212.03,0.0001452,2]
[335846918,1724531467859,-824.83,0.0001452,2]
[335846919,1724531467869,-541.05,0.0001452,2]
[335846920,1724531467880,-500.0,0.0001452,2]
[335846921,1724531467889,-706.53,0.0001452,2]
[335846922,1724531467898,-500.0,0.0001452,2]
[335846923,1724531467907,-1031.72,0.0001452,2]
[335846924,1724531467916,-500.0,0.0001452,2]
[335846925,1724531467925,-500.0,0.0001452,2]
[335846926,1724531467934,-821.42,0.0001452,2]
[335846927,1724531467946,-1269.14,0.0001452,2]
[335846928,1724531467957,-500.0,0.0001452,2]
[335846929,1724531467968,-550.91,0.0001452,2]
[335846930,1724531467978,-2330.5,0.0001452,2]
[335846931,1724531467987,-564.78,0.0001452,2]
[335846932,1724531467997,-500.0,0.0001452,2]
[335846933,1724531468008,-500.0,0.0001452,2]
[335846934,1724531468019,-500.0,0.0001452,2]
[335846935,1724531468030,-500.0,0.0001452,2]
[335846936,1724531468042,-536.71,0.0001452,2]
[335846937,1724531468060,-2051.66,0.0001452,2]
[335846938,1724531468069,-500.0,0.0001452,2]
[335846939,1724531468079,-500.0,0.0001452,2]
[335846940,1724531468088,-1362.21,0.0001452,2]
[335846941,1724531468098,-500.0,0.0001452,2]
[335846942,1724531468107,-5397.94,0.0001452,2]
[335846943,1724531468116,-6804.12,0.0001452,2]
[335846944,1724531468127,-648.45,0.0001452,2]
[335846945,1724531468136,-884.96,0.0001452,2]
[335846946,1724531468145,-686.18,0.0001452,2]
[335846947,1724531468154,-500.0,0.0001452,2]
[335846948,1724531468164,-1785.1,0.0001452,2]
[335846949,1724531468173,-711.95,0.0001452,2]
[335846950,1724531468183,-3273.28,0.0001452,2]
[335846951,1724531468192,-1293.47,0.0001452,2]
[335846952,1724531468202,-1164.49,0.0001452,2]
[335846953,1724531468211,-3352.92,0.0001452,2]
[335846954,1724531468220,-500.0,0.0001452,2]
[335846955,1724531468229,-747.91,0.0001452,2]
[335846956,1724531468239,-730.3,0.0001452,2]
[335846957,1724531468249,-1003.19,0.0001452,2]
[335846958,1724531468258,-1036.67,0.0001452,2]
[335846959,1724531468268,-3007.21,0.0001452,2]
[335846960,1724531468277,-598.05,0.0001452,2]
[335846961,1724531468286,-1648.7,0.0001452,2]
[335846962,1724531468296,-500.0,0.0001452,2]
[335846963,1724531468307,-2248.02,0.0001452,2]
[335846964,1724531468316,-940.59,0.0001452,2]
[335846965,1724531468326,-896.98,0.0001452,2]
[335846966,1724531468335,-762.45,0.0001452,2]
[335846967,1724531468345,-500.0,0.0001452,2]
[335846968,1724531468355,-896.49,0.0001452,2]
[335846969,1724531468365,-613.35,0.0001452,2]
[335846970,1724531468373,-500.0,0.0001452,2]
[335846971,1724531468382,-7990.85,0.0001452,2]
[335846972,1724531468392,-500.0,0.0001452,2]
[335846973,1724531468401,-3087.13,0.0001452,2]
[335846974,1724531468411,-1632.06,0.0001452,2]
[335846975,1724531468420,-500.0,0.0001452,2]
[335846976,1724531468429,-570.3,0.0001452,2]
[335846977,1724531468438,-3378.83,0.0001452,2]
[335846978,1724531468447,-963.5,0.0001452,2]
[335846979,1724531468456,-2636.69,0.0001452,2]
[335846980,1724531468465,-764.0,0.0001452,2]
[335846981,1724531468474,-500.0,0.0001452,2]
[335846982,1724531468483,-644.41,0.0001452,2]
[335846983,1724531468493,-1924.56,0.0001452,2]
[335846984,1724531468502,-5273.79,0.0001452,2]
[335846985,1724531468511,-500.0,0.0001452,2]
[335846986,1724531468519,-896.55,0.0001452,2]
[335846987,1724531468528,-10892.31,0.0001452,2]
[335846988,1724531468537,-500.0,0.0001452,2]
[335846989,1724531468546,-500.0,0.0001452,2]
[335846990,1724531468556,-3022.35,0.0001452,2]
[335846991,1724531468565,-7921.53,0.0001452,2]
[335846992,1724531468574,-663.04,0.0001452,2]
[335846993,1724531468583,-500.0,0.0001452,2]
[335846994,1724531468592,-500.0,0.0001452,2]
[335846995,1724531468601,-775.53,0.0001452,2]
[335846996,1724531468610,-1062.57,0.0001452,2]
[335846997,1724531468619,-637.96,0.0001452,2]
[335846998,1724531468628,-670.81,0.0001452,2]
[335846999,1724531468637,-500.0,0.0001452,2]
[335847000,1724531468646,-1720.57,0.0001452,2]
[335847001,1724531468656,-660.87,0.0001452,2]
[335847002,1724531468665,-500.0,0.0001452,2]
[335847003,1724531468674,-802.38,0.0001452,2]
[335847004,1724531468684,-1839.52,0.0001452,2]
[335847005,1724531468693,-500.0,0.0001452,2]
[335847006,1724531468703,-22051.78,0.0001452,2]
[335847007,1724531468712,-2124.46,0.0001452,2]
[335847008,1724531468721,-823.85,0.0001452,2]
[335847009,1724531468731,-823.68,0.0001452,2]
[335847010,1724531468740,-2260.21,0.0001452,2]
[335847011,1724531468749,-968.76,0.0001452,2]
[335847012,1724531468758,-4073.78,0.0001452,2]
[335847013,1724531468768,-500.0,0.0001452,2]
[335847014,1724531468777,-500.0,0.0001452,2]
[335847015,1724531468787,-500.0,0.0001452,2]
[335847016,1724531468796,-805.16,0.0001452,2]
[335847017,1724531468806,-728.77,0.0001452,2]
[335847018,1724531468815,-500.0,0.0001452,2]
[335847019,1724531468825,-9393.57,0.0001452,2]
[335847020,1724531468835,-591.04,0.0001452,2]
[335847021,1724531468844,-500.0,0.0001452,2]
[335847022,1724531468853,-3343.01,0.0001452,2]
[335847023,1724531468862,-734.3,0.0001452,2]
[335847024,1724531468871,-1899.14,0.0001452,2]
[335847025,1724531468880,-1029.65,0.0001452,2]
[335847026,1724531468889,-721.66,0.0001452,2]
[335847027,1724531468898,-1502.18,0.0001452,2]
[335847028,1724531468908,-2917.34,0.0001452,2]
[335847029,1724531468917,-1262.64,0.0001452,2]
[335847030,1724531468926,-1438.33,0.0001452,2]
[335847031,1724531468936,-500.0,0.0001452,2]
[335847032,1724531468945,-500.0,0.0001452,2]
[335847033,1724531468955,-3106.9,0.0001452,2]
[335847034,1724531468964,-14408.06,0.0001452,2]
[335847035,1724531468974,-2712.11,0.0001452,2]
[335847036,1724531468983,-2193.8,0.0001452,2]
[335847037,1724531468992,-500.0,0.0001452,2]
[335847038,1724531469001,-2815.63,0.0001452,2]
[335847039,1724531469011,-500.0,0.0001452,2]
[335847040,1724531469020,-2259.87,0.0001452,2]
[335847041,1724531469029,-643.29221852,0.0001452,2]
[335847042,1724531469041,-627.85,0.0001452,2]
[335847043,1724531469053,-1129.92,0.0001452,2]
[335847044,1724531469062,-789.7,0.0001452,2]
[335847045,1724531469072,-500.0,0.0001452,2]
[335847046,1724531469082,-500.0,0.0001452,2]
[335847047,1724531469091,-2350.51,0.0001452,2]
[335847048,1724531469100,-500.0,0.0001452,2]
[335847049,1724531469110,-741.25,0.0001452,2]
[335847050,1724531469119,-2327.67,0.0001452,2]
[335847051,1724531469129,-2773.88,0.0001452,2]
[335847052,1724531469139,-500.0,0.0001452,2]
[335847053,1724531469148,-1842.59,0.0001452,2]
[335847054,1724531469158,-4763.79,0.0001452,2]
[335847055,1724531469167,-500.0,0.0001452,2]
[335847056,1724531469176,-1819.59,0.0001452,2]
[335847057,1724531469185,-621.55,0.0001452,2]
[335847058,1724531469195,-3461.51,0.0001452,2]
[335847059,1724531469204,-1288.14,0.0001452,2]
[335847060,1724531469215,-807.08,0.0001452,2]
[335847061,1724531469225,-679.29,0.0001452,2]
[335847062,1724531469234,-7396.52,0.0001452,2]
[335847063,1724531469244,-814.15,0.0001452,2]
[335847064,1724531469253,-500.0,0.0001452,2]
[335847065,1724531469263,-20361.09,0.0001452,2]
[335847066,1724531469272,-904.12,0.0001452,2]
[335847067,1724531469282,-500.0,0.0001452,2]
[335847068,1724531469291,-2226.72,0.0001452,2]
[335847069,1724531469300,-405.51378559,0.0001452,2]
[335847070,1724531469309,-11201.75,0.0001452,2]
[335847071,1724531469319,-10180.43,0.0001452,2]
[335847072,1724531469328,-500.0,0.0001452,2]
[335847073,1724531469338,-1538.63,0.0001452,2]
[335847074,1724531469347,-718.11,0.0001452,2]
[335847075,1724531469356,-500.0,0.0001452,2]
[335847076,1724531469366,-699.61,0.0001452,2]
[335847077,1724531469375,-500.0,0.0001452,2]
[335847078,1724531469384,-2896.04,0.0001452,2]
[335847079,1724531469393,-500.0,0.0001452,2]
[335847080,1724531469402,-3039.26,0.0001452,2]
[335847081,1724531469411,-500.0,0.0001452,2]
[335847082,1724531469420,-500.0,0.0001452,2]
[335847083,1724531469429,-2034.56,0.0001452,2]
[335847084,1724531469440,-685.31,0.0001452,2]
[335847085,1724531469450,-500.0,0.0001452,2]
[335847086,1724531469459,-500.0,0.0001452,2]
[335847087,1724531469468,-1232.81,0.0001452,2]
[335847088,1724531469477,-500.0,0.0001452,2]
[335847089,1724531469486,-941.9,0.0001452,2]
[335847090,1724531469495,-1832.98,0.0001452,2]
[335847091,1724531469504,-1070.08,0.0001452,2]
[335847092,1724531469513,-11259.44,0.0001452,2]
[335847093,1724531469522,-500.0,0.0001452,2]
[335847094,1724531469531,-4136.04,0.0001452,2]
[335847095,1724531469540,-1003.67290092,0.00014521,2]
[335847096,1724531469550,-528.53244632,0.00014521,2]
[335847097,1724531469559,-1000.0,0.00014521,2]
[335847098,1724531469569,-1000.0,0.00014521,2]
[335847099,1724531469577,-862.69810442,0.00014521,2]
[335847100,1724531469586,-500.0,0.00014529,2]
[335847101,1724531469596,-1452.375908,0.00014538,2]
[335847102,1724531469605,-1352.39866,0.00014538,2]
[335847103,1724531469615,-160.0,0.00014548,8]
[335847104,1724531469624,-160.0,0.00014589,9]
[335847105,1724531469634,-160.0,0.00014631,10]
[335847106,1724531469643,-155.0,0.0001464,2]
[335847107,1724531469652,-160.0,0.00014673,11]
[335847108,1724531469662,-160.0,0.00014714,12]
[335847109,1724531469671,-160.0,0.00014756,13]
[335847110,1724531469680,-813.56,0.00014794,2]
[335847111,1724531469690,-500.0,0.00014794,2]
[335847112,1724531469699,-501.29162134,0.00014794,2]
[335847113,1724531469708,-500.0,0.00014794,2]
[335847114,1724531469717,-734.4,0.00014794,2]
[335847115,1724531469727,-603.04,0.00014794,2]
[335847116,1724531469737,-622.05,0.00014794,2]
[335847117,1724531469747,-500.0,0.00014794,2]
[335847118,1724531469756,-500.0,0.00014794,2]
[335847119,1724531469765,-500.0,0.00014794,2]
[335847120,1724531469774,-500.0,0.00014794,2]
[335847121,1724531469784,-519.65,0.00014794,2]
[335847122,1724531469794,-501.38085814,0.00014794,2]
[335847123,1724531469804,-500.0,0.00014794,2]
[335847124,1724531469823,-713.04,0.00014794,2]
[335847125,1724531469832,-500.0,0.00014794,2]
[335847126,1724531469842,-530.24,0.00014794,2]
[335847127,1724531469851,-500.0,0.00014794,2]
[335847128,1724531469861,-602.6,0.00014794,2]
[335847129,1724531469871,-500.0,0.00014794,2]
[335847130,1724531469880,-500.0,0.00014794,2]
[335847131,1724531469890,-784.11,0.00014794,2]
[335847132,1724531469901,-500.0,0.00014794,2]
[335847133,1724531469910,-500.0,0.00014794,2]
[335847134,1724531469920,-500.0,0.00014794,2]
[335847135,1724531469929,-500.0,0.00014794,2]
[335847136,1724531469939,-500.0,0.00014794,2]
[335847137,1724531469949,-500.0,0.00014794,2]
[335847138,1724531469958,-500.0,0.00014794,2]
[335847139,1724531469967,-500.0,0.00014794,2]
[335847140,1724531469977,-500.0,0.00014794,2]
[335847141,1724531469986,-500.0,0.00014794,2]
[335847142,1724531469996,-500.0,0.00014794,2]
[335847143,1724531470005,-563.59,0.00014794,2]
[335847144,1724531470014,-891.68,0.00014794,2]
[335847145,1724531470024,-805.77,0.00014794,2]
[335847146,1724531470033,-500.0,0.00014794,2]
[335847147,1724531470043,-500.0,0.00014794,2]
[335847148,1724531470190,-569.79,0.00014794,2]
[335847149,1724531470200,-523.9,0.00014794,2]
[335847150,1724531470209,-562.45,0.00014794,2]
[335847151,1724531470218,-962.65,0.00014794,2]
[335847152,1724531470227,-559.36,0.00014794,2]
[335847153,1724531470236,-500.0,0.00014794,2]
[335847154,1724531470246,-500.0,0.00014794,2]
[335847155,1724531470255,-586.18,0.00014794,2]
[335847156,1724531470265,-807.15,0.00014794,2]
[335847157,1724531470275,-583.94,0.00014794,2]
[335847158,1724531470284,-533.88,0.00014794,2]
[335847159,1724531470293,-549.76956033,0.00014794,2]
[335847160,1724531470303,-532.18126823,0.00014794,2]
[335847161,1724531470312,-760.25,0.00014794,2]
[335847162,1724531470322,-583.15,0.00014794,2]
[335847163,1724531470330,-500.0,0.00014794,2]
[335847164,1724531470340,-863.95,0.00014794,2]
[335847165,1724531470349,-520.2,0.00014794,2]
[335847166,1724531470358,-500.0,0.00014794,2]
[335847167,1724531470368,-500.0,0.00014794,2]
[335847168,1724531470376,-500.0,0.00014794,2]
[335847169,1724531470386,-500.0,0.00014794,2]
[335847170,1724531470395,-1365.0,0.00014794,2]
[335847171,1724531470404,-850.08,0.00014794,2]
[335847172,1724531470414,-500.0,0.00014794,2]
[335847173,1724531470423,-500.0,0.00014794,2]
[335847174,1724531470432,-752.47,0.00014794,2]
[335847175,1724531470442,-500.0,0.00014794,2]
[335847176,1724531470451,-500.0,0.00014794,2]
[335847177,1724531470460,-354.89242868,0.00014794,2]
[335847178,1724531470469,-1109.59,0.00014794,2]
[335847179,1724531470479,-500.0,0.00014794,2]
[335847180,1724531470488,-706.93,0.00014794,2]
[335847181,1724531470497,-500.0,0.00014794,2]
[335847182,1724531470507,-523.6112214,0.00014794,2]
[335847183,1724531470515,-526.30288079,0.00014794,2]
[335847184,1724531470525,-500.0,0.00014794,2]
[335847185,1724531470534,-500.0,0.00014794,2]
[335847186,1724531470543,-823.53,0.00014794,2]
[335847187,1724531470553,-576.76,0.00014794,2]
[335847188,1724531470563,-500.0,0.00014794,2]
[335847189,1724531470572,-500.0,0.00014794,2]
[335847190,1724531470582,-526.81,0.00014794,2]
[335847191,1724531470591,-500.0,0.00014794,2]
[335847192,1724531470600,-500.0,0.00014794,2]
[335847193,1724531470610,-500.0,0.00014794,2]
[335847194,1724531470618,-500.0,0.00014794,2]
[335847195,1724531470628,-500.0,0.00014794,2]
[335847196,1724531470637,-677.32,0.00014794,2]
[335847197,1724531470647,-500.0,0.00014794,2]
[335847198,1724531470657,-500.0,0.00014794,2]
[335847199,1724531470666,-500.0,0.00014794,2]
[335847200,1724531470677,-500.0,0.00014794,2]
[335847201,1724531470688,-929.47,0.00014794,2]
[335847202,1724531470698,-500.0,0.00014794,2]
[335847203,1724531470710,-748.15,0.00014794,2]
[335847204,1724531470721,-534.28,0.00014794,2]
[335847205,1724531470732,-500.0,0.00014794,2]
[335847206,1724531470743,-500.0,0.00014794,2]
[335847207,1724531470753,-774.94,0.00014794,2]
[335847208,1724531470764,-1168.85,0.00014794,2]
[335847209,1724531470774,-500.0,0.00014794,2]
[335847210,1724531470784,-500.0,0.00014794,2]
[335847211,1724531470794,-500.0,0.00014794,2]
[335847212,1724531470804,-500.0,0.00014794,2]
[335847213,1724531470814,-500.0,0.00014794,2]
[335847214,1724531470824,-1085.43,0.00014794,2]
[335847215,1724531470833,-1002.47,0.00014794,2]
[335847216,1724531470843,-639.11,0.00014794,2]
[335847217,1724531470852,-926.86,0.00014794,2]
[335847218,1724531470862,-500.0,0.00014794,2]
[335847219,1724531470872,-761.14,0.00014794,2]